[Event "FIDE Women's Grand Swiss 2023"]
[Site "Villa Marina, Douglas, Isle of Man, Isle Of Man"]
[Date "2023.10.30"]
[Round "6.23"]
[White "Lee, Alice"]
[Black "Divya, Deshmukh"]
[Result "1/2-1/2"]
[TimeControl "40/90 + 30 + 30s/move"]
[WhiteFideId "30941822"]
[BlackFideId "35006916"]
[WhiteElo "2388"]
[BlackElo "2408"]

1. d4 {[%clk 01:30:58]} {[%emt 00:00:01]} Nf6 {[%clk 01:30:56]} {[%emt
00:00:04]} 2. c4 {[%clk 01:31:24]} {[%emt 00:00:04]} e6 {[%clk 01:31:24]}
{[%emt 00:00:03]} 3. Nf3 {[%clk 01:31:49]} {[%emt 00:00:05]} b6 {[%clk
01:31:52]} {[%emt 00:00:02]} 4. g3 {[%clk 01:30:52]} {[%emt 00:01:26]} Ba6
{[%clk 01:32:17]} {[%emt 00:00:05]} 5. b3 {[%clk 01:31:18]} {[%emt 00:00:04]}
Bb7 {[%clk 01:32:42]} {[%emt 00:00:05]} 6. Bg2 {[%clk 01:31:32]} {[%emt
00:00:16]} Bb4+ {[%clk 01:33:06]} {[%emt 00:00:06]} 7. Bd2 {[%clk 01:31:56]}
{[%emt 00:00:06]} c5 {[%clk 01:33:35]} {[%emt 00:00:02]} 8. Bxb4 {[%clk
01:25:54]} {[%emt 00:06:31]} cxb4 {[%clk 01:33:41]} {[%emt 00:00:24]} 9. O-O
{[%clk 01:25:48]} {[%emt 00:00:36]} O-O {[%clk 01:34:06]} {[%emt 00:00:04]} 10.
a3 {[%clk 01:17:21]} {[%emt 00:08:58]} Na6 {[%clk 01:34:31]} {[%emt 00:00:06]}
11. Ne5 {[%clk 01:11:03]} {[%emt 00:06:47]} Bxg2 {[%clk 01:33:18]} {[%emt
00:01:43]} 12. Kxg2 {[%clk 01:11:31]} {[%emt 00:00:02]} Qe7 {[%clk 01:30:00]}
{[%emt 00:03:48]} 13. Nd3 {[%clk 01:04:54]} {[%emt 00:07:06]} d5 {[%clk
01:26:21]} {[%emt 00:04:10]} 14. axb4 {[%clk 00:57:53]} {[%emt 00:07:31]} Nxb4
{[%clk 01:25:45]} {[%emt 00:01:06]} 15. Nxb4 {[%clk 00:56:54]} {[%emt
00:01:29]} Qxb4 {[%clk 01:26:13]} {[%emt 00:00:02]} 16. Ra4 {[%clk 00:56:36]}
{[%emt 00:00:48]} Qe7 {[%clk 01:13:17]} {[%emt 00:13:25]} 17. Nd2 {[%clk
00:52:03]} {[%emt 00:05:03]} Qb7 {[%clk 01:03:47]} {[%emt 00:10:00]} 18. Nf3
{[%clk 00:49:20]} {[%emt 00:03:14]} Ne4 {[%clk 00:57:30]} {[%emt 00:06:47]} 19.
Qa1 {[%clk 00:48:44]} {[%emt 00:01:06]} b5 {[%clk 00:46:09]} {[%emt 00:11:51]}
20. cxb5 {[%clk 00:47:12]} {[%emt 00:02:02]} Qxb5 {[%clk 00:46:08]} {[%emt
00:00:30]} 21. Re1 {[%clk 00:43:38]} {[%emt 00:04:04]} a6 {[%clk 00:42:49]}
{[%emt 00:03:50]} 22. Ra5 {[%clk 00:42:30]} {[%emt 00:01:38]} Qb7 {[%clk
00:36:19]} {[%emt 00:07:00]} 23. Rc1 {[%clk 00:39:02]} {[%emt 00:03:57]} Qxb3
{[%clk 00:27:31]} {[%emt 00:09:19]} 24. Rxa6 {[%clk 00:39:12]} {[%emt
00:00:19]} Qb7 {[%clk 00:27:59]} {[%emt 00:00:03]} 25. Rxa8 {[%clk 00:39:29]}
{[%emt 00:00:13]} Rxa8 {[%clk 00:27:28]} {[%emt 00:00:58]} 26. Rc7 {[%clk
00:39:47]} {[%emt 00:00:14]} Rxa1 {[%clk 00:27:46]} {[%emt 00:00:12]} 27. Rxb7
{[%clk 00:40:12]} {[%emt 00:00:05]} f6 {[%clk 00:28:15]} {[%emt 00:00:02]} 28.
Rb8+ {[%clk 00:40:28]} {[%emt 00:00:14]} Kf7 {[%clk 00:28:40]} {[%emt
00:00:04]} 29. Rb7+ {[%clk 00:40:52]} {[%emt 00:00:07]} Kf8 {[%clk 00:29:09]}
{[%emt 00:00:01]} 30. Rb8+ {[%clk 00:41:15]} {[%emt 00:00:07]} Kf7 {[%clk
00:29:21]} {[%emt 00:00:19]} 31. Rb7+ {[%clk 00:41:36]} {[%emt 00:00:09]}
1/2-1/2

[Event "FIDE Women's Grand Swiss 2023"]
[Site "Villa Marina, Douglas, Isle of Man, Isle Of Man"]
[Date "2023.10.30"]
[Round "6.24"]
[White "Kanyamarala, Trisha"]
[Black "Matnadze Bujiashvili, Ann"]
[Result "0-1"]
[TimeControl "40/90 + 30 + 30s/move"]
[WhiteFideId "45004722"]
[BlackFideId "13601377"]
[WhiteElo "2184"]
[BlackElo "2400"]

1. d4 {[%clk 01:30:54]} {[%emt 00:00:04]} Nf6 {[%clk 01:30:55]} {[%emt
00:00:06]} 2. c4 {[%clk 01:31:14]} {[%emt 00:00:10]} e6 {[%clk 01:31:20]}
{[%emt 00:00:05]} 3. Nf3 {[%clk 01:31:35]} {[%emt 00:00:09]} b6 {[%clk
01:31:44]} {[%emt 00:00:06]} 4. g3 {[%clk 01:31:55]} {[%emt 00:00:10]} Bb7
{[%clk 01:32:09]} {[%emt 00:00:06]} 5. Bg2 {[%clk 01:32:17]} {[%emt 00:00:08]}
Be7 {[%clk 01:32:33]} {[%emt 00:00:05]} 6. Nc3 {[%clk 01:31:22]} {[%emt
00:01:25]} Ne4 {[%clk 01:32:12]} {[%emt 00:00:51]} 7. Bd2 {[%clk 01:29:25]}
{[%emt 00:02:28]} f5 {[%clk 01:29:04]} {[%emt 00:03:38]} 8. O-O {[%clk
01:29:19]} {[%emt 00:00:35]} O-O {[%clk 01:29:20]} {[%emt 00:00:15]} 9. Ne5
{[%clk 01:28:43]} {[%emt 00:01:05]} Nxc3 {[%clk 01:28:48]} {[%emt 00:01:02]} 10.
Bxc3 {[%clk 01:28:47]} {[%emt 00:00:26]} Bxg2 {[%clk 01:29:13]} {[%emt
00:00:05]} 11. Kxg2 {[%clk 01:29:09]} {[%emt 00:00:08]} d6 {[%clk 01:28:46]}
{[%emt 00:00:57]} 12. Nd3 {[%clk 01:29:17]} {[%emt 00:00:22]} Bf6 {[%clk
01:26:20]} {[%emt 00:02:56]} 13. Re1 {[%clk 01:27:46]} {[%emt 00:02:00]} Qc8
{[%clk 01:10:36]} {[%emt 00:16:15]} 14. e4 {[%clk 01:15:33]} {[%emt 00:12:43]}
Qb7 {[%clk 01:10:24]} {[%emt 00:00:42]} 15. Qf3 {[%clk 01:09:51]} {[%emt
00:06:12]} Nd7 {[%clk 01:00:27]} {[%emt 00:10:27]} 16. e5 {[%clk 00:56:21]}
{[%emt 00:14:00]} Qxf3+ {[%clk 01:00:49]} {[%emt 00:00:09]} 17. Kxf3 {[%clk
00:56:46]} {[%emt 00:00:04]} dxe5 {[%clk 01:00:54]} {[%emt 00:00:25]} 18. dxe5
{[%clk 00:56:51]} {[%emt 00:00:25]} Be7 {[%clk 01:00:08]} {[%emt 00:01:16]} 19.
b4 {[%clk 00:49:44]} {[%emt 00:07:37]} Rfd8 {[%clk 00:58:52]} {[%emt 00:01:46]}
20. Red1 {[%clk 00:47:44]} {[%emt 00:02:30]} a5 {[%clk 00:57:12]} {[%emt
00:02:11]} 21. a3 {[%clk 00:34:31]} {[%emt 00:13:43]} Kf7 {[%clk 00:57:06]}
{[%emt 00:00:35]} 22. Ke2 {[%clk 00:33:54]} {[%emt 00:01:07]} g5 {[%clk
00:56:10]} {[%emt 00:01:26]} 23. Rdb1 {[%clk 00:30:27]} {[%emt 00:03:57]} Ra7
{[%clk 00:51:38]} {[%emt 00:05:02]} 24. Bd4 {[%clk 00:18:16]} {[%emt 00:12:42]}
Nb8 {[%clk 00:49:30]} {[%emt 00:02:38]} 25. Ke3 {[%clk 00:17:01]} {[%emt
00:01:44]} c5 {[%clk 00:43:48]} {[%emt 00:06:12]} 26. Bc3 {[%clk 00:13:30]}
{[%emt 00:04:01]} Rad7 {[%clk 00:35:15]} {[%emt 00:09:03]} 27. Ne1 {[%clk
00:11:55]} {[%emt 00:02:05]} axb4 {[%clk 00:27:15]} {[%emt 00:08:31]} 28. axb4
{[%clk 00:12:19]} {[%emt 00:00:07]} Nc6 {[%clk 00:27:33]} {[%emt 00:00:11]} 29.
b5 {[%clk 00:09:52]} {[%emt 00:02:57]} Nd4 {[%clk 00:27:16]} {[%emt 00:00:46]}
30. Rb2 {[%clk 00:05:54]} {[%emt 00:04:28]} g4 {[%clk 00:26:29]} {[%emt
00:01:16]} 31. f4 {[%clk 00:02:21]} {[%emt 00:04:04]} gxf3 {[%clk 00:26:32]}
{[%emt 00:00:27]} 32. Bxd4 {[%clk 00:01:55]} {[%emt 00:00:56]} Rxd4 {[%clk
00:24:11]} {[%emt 00:02:51]} 33. Nxf3 {[%clk 00:02:13]} {[%emt 00:00:12]} Rxc4
{[%clk 00:24:04]} {[%emt 00:00:37]} 34. Ra7 {[%clk 00:02:25]} {[%emt 00:00:18]}
Ke8 {[%clk 00:23:26]} {[%emt 00:01:08]} 35. Rb7 {[%clk 00:01:48]} {[%emt
00:01:08]} Re4+ {[%clk 00:06:34]} {[%emt 00:17:21]} 36. Kf2 {[%clk 00:02:13]}
{[%emt 00:00:06]} c4 {[%clk 00:06:10]} {[%emt 00:00:53]} 37. Ra2 {[%clk
00:02:22]} {[%emt 00:00:22]} c3 {[%clk 00:05:04]} {[%emt 00:01:36]} 38. Raa7
{[%clk 00:02:14]} {[%emt 00:00:37]} Bc5+ {[%clk 00:05:27]} {[%emt 00:00:07]} 39.
Kg2 {[%clk 00:02:35]} {[%emt 00:00:09]} c2 {[%clk 00:05:23]} {[%emt 00:00:34]}
40. Ra1 {[%clk 00:01:28]} {[%emt 00:01:38]} Ra4 {[%clk 00:02:40]} {[%emt
00:03:13]} 41. Rc1 {[%clk 00:28:01]} {[%emt 00:03:57]} Ra2 {[%clk 00:31:29]}
{[%emt 00:01:41]} 42. Ne1 {[%clk 00:23:07]} {[%emt 00:05:24]} Rd1 {[%clk
00:30:48]} {[%emt 00:01:10]} 43. Rxc2 {[%clk 00:22:55]} {[%emt 00:00:42]} Rxc2+
{[%clk 00:31:13]} {[%emt 00:00:04]} 44. Nxc2 {[%clk 00:23:21]} {[%emt
00:00:05]} Rd2+ {[%clk 00:31:39]} {[%emt 00:00:04]} 45. Kf3 {[%clk 00:23:40]}
{[%emt 00:00:11]} Rxc2 {[%clk 00:31:53]} {[%emt 00:00:16]} 46. Rxh7 {[%clk
00:24:06]} {[%emt 00:00:04]} Rf2# {[%clk 00:32:16]} {[%emt 00:00:07]} 0-1

[Event "FIDE Women's Grand Swiss 2023"]
[Site "Villa Marina, Douglas, Isle of Man, Isle Of Man"]
[Date "2023.10.30"]
[Round "6.25"]
[White "Nassr, Lina"]
[Black "Gomez Barrera, Javiera Belen"]
[Result "0-1"]
[TimeControl "40/90 + 30 + 30s/move"]
[WhiteFideId "7908075"]
[BlackFideId "3418723"]
[WhiteElo "2066"]
[BlackElo "2266"]

1. d4 {[%clk 01:30:53]} {[%emt 00:00:05]} d5 {[%clk 01:30:55]} {[%emt
00:00:06]} 2. Nc3 {[%clk 01:30:41]} {[%emt 00:00:43]} Nf6 {[%clk 01:31:02]}
{[%emt 00:00:23]} 3. Bf4 {[%clk 01:30:52]} {[%emt 00:00:18]} a6 {[%clk
01:29:12]} {[%emt 00:02:21]} 4. Nf3 {[%clk 01:29:27]} {[%emt 00:01:54]} e6
{[%clk 01:25:44]} {[%emt 00:03:59]} 5. e3 {[%clk 01:28:08]} {[%emt 00:01:48]}
c5 {[%clk 01:17:36]} {[%emt 00:08:39]} 6. a3 {[%clk 01:24:54]} {[%emt
00:03:44]} c4 {[%clk 01:06:38]} {[%emt 00:11:28]} 7. Ne5 {[%clk 01:15:34]}
{[%emt 00:09:49]} b5 {[%clk 01:04:23]} {[%emt 00:02:45]} 8. g4 {[%clk
01:03:10]} {[%emt 00:12:54]} Bb7 {[%clk 00:55:56]} {[%emt 00:08:58]} 9. Qf3
{[%clk 01:00:13]} {[%emt 00:03:27]} Qe7 {[%clk 00:41:51]} {[%emt 00:14:35]} 10.
Bg2 {[%clk 00:50:10]} {[%emt 00:10:32]} Ne4 {[%clk 00:33:09]} {[%emt 00:09:13]}
11. g5 {[%clk 00:43:12]} {[%emt 00:07:28]} Nxc3 {[%clk 00:20:56]} {[%emt
00:12:43]} 12. bxc3 {[%clk 00:43:11]} {[%emt 00:00:31]} Nc6 {[%clk 00:18:40]}
{[%emt 00:02:45]} 13. h4 {[%clk 00:37:20]} {[%emt 00:06:21]} Nxe5 {[%clk
00:14:47]} {[%emt 00:04:24]} 14. Bxe5 {[%clk 00:37:12]} {[%emt 00:00:37]} h6
{[%clk 00:15:11]} {[%emt 00:00:06]} 15. Qh5 {[%clk 00:29:00]} {[%emt 00:08:42]}
Bc6 {[%clk 00:13:20]} {[%emt 00:02:21]} 16. O-O {[%clk 00:27:15]} {[%emt
00:02:16]} Rg8 {[%clk 00:09:23]} {[%emt 00:04:27]} 17. Rfe1 {[%clk 00:22:45]}
{[%emt 00:05:00]} Qb7 {[%clk 00:07:45]} {[%emt 00:02:08]} 18. Qg4 {[%clk
00:20:26]} {[%emt 00:02:48]} hxg5 {[%clk 00:07:30]} {[%emt 00:00:46]} 19. hxg5
{[%clk 00:20:49]} {[%emt 00:00:07]} Be7 {[%clk 00:07:32]} {[%emt 00:00:27]} 20.
f3 {[%clk 00:14:43]} {[%emt 00:06:36]} Qd7 {[%clk 00:07:04]} {[%emt 00:00:59]}
21. e4 {[%clk 00:12:25]} {[%emt 00:02:48]} O-O-O {[%clk 00:03:40]} {[%emt
00:03:53]} 22. Bh3 {[%clk 00:11:44]} {[%emt 00:01:11]} g6 {[%clk 00:03:05]}
{[%emt 00:01:06]} 23. Bg2 {[%clk 00:09:05]} {[%emt 00:03:09]} Rde8 {[%clk
00:02:19]} {[%emt 00:01:17]} 24. Qf4 {[%clk 00:07:16]} {[%emt 00:02:18]} Ref8
{[%clk 00:02:21]} {[%emt 00:00:28]} 25. Qg3 {[%clk 00:03:30]} {[%emt 00:04:16]}
Qd8 {[%clk 00:02:32]} {[%emt 00:00:19]} 26. f4 {[%clk 00:03:01]} {[%emt
00:00:58]} dxe4 {[%clk 00:01:34]} {[%emt 00:01:28]} 27. Bxe4 {[%clk 00:03:24]}
{[%emt 00:00:07]} Bxe4 {[%clk 00:01:59]} {[%emt 00:00:05]} 28. Rxe4 {[%clk
00:03:51]} {[%emt 00:00:04]} Qd5 {[%clk 00:02:25]} {[%emt 00:00:04]} 29. Ree1
{[%clk 00:02:37]} {[%emt 00:01:44]} Bd8 {[%clk 00:00:59]} {[%emt 00:01:56]} 30.
a4 {[%emt 00:00:47]} Bb6 {[%clk 00:01:08]} 31. axb5 {[%clk 00:02:13]} {[%emt
00:00:58]} axb5 {[%clk 00:01:37]} {[%emt 00:00:01]} 32. Bf6 {[%clk 00:01:03]}
{[%emt 00:01:40]} Bc7 {[%clk 00:01:12]} {[%emt 00:00:55]} 33. Be5 {[%clk
00:01:12]} {[%emt 00:00:21]} Bb6 {[%clk 00:01:28]} {[%emt 00:00:15]} 34. Qg2
{[%clk 00:01:27]} {[%emt 00:00:14]} Qxg2+ {[%clk 00:01:27]} {[%emt 00:00:30]}
35. Kxg2 {[%clk 00:01:56]} {[%emt 00:00:02]} Kb7 {[%clk 00:01:56]} {[%emt
00:00:01]} 36. Rh1 {[%clk 00:01:00]} {[%emt 00:01:25]} Rd8 {[%clk 00:01:33]}
{[%emt 00:00:54]} 37. Rab1 {[%clk 00:00:48]} {[%emt 00:00:43]} Kc6 {[%clk
00:01:53]} {[%emt 00:00:09]} 38. Rb2 {[%emt 00:01:46]} Ba5 {[%clk 00:01:02]} 39.
Rhb1 {[%clk 00:00:58]} {[%emt 00:00:25]} Rd5 {[%clk 00:00:53]} {[%emt
00:00:38]} 40. Ra2 {[%clk 00:00:41]} {[%emt 00:00:48]} Bxc3 {[%clk 00:01:12]}
{[%emt 00:00:11]} 41. Ra6+ {[%clk 00:11:47]} {[%emt 00:19:24]} Kb7 {[%clk
00:31:40]} {[%emt 00:00:02]} 42. Ra3 {[%clk 00:12:08]} {[%emt 00:00:09]} Bxd4
{[%clk 00:31:52]} {[%emt 00:00:18]} 43. Bxd4 {[%clk 00:11:45]} {[%emt
00:00:52]} Rxd4 {[%clk 00:32:21]} {[%emt 00:00:02]} 44. Kf3 {[%clk 00:10:48]}
{[%emt 00:01:27]} Kb6 {[%clk 00:30:50]} {[%emt 00:02:01]} 45. Rba1 {[%clk
00:10:01]} {[%emt 00:01:16]} Rgd8 {[%clk 00:29:55]} {[%emt 00:01:25]} 46. c3
{[%clk 00:03:03]} {[%emt 00:07:29]} Rd2 {[%clk 00:25:02]} {[%emt 00:05:22]} 47.
Ke4 {[%clk 00:01:24]} {[%emt 00:02:09]} Re2+ {[%clk 00:21:36]} {[%emt
00:03:56]} 48. Kf3 {[%clk 00:01:49]} {[%emt 00:00:06]} Rc2 {[%clk 00:21:48]}
{[%emt 00:00:18]} 49. Ra7 {[%clk 00:00:42]} {[%emt 00:01:37]} Rd3+ {[%clk
00:21:07]} {[%emt 00:01:11]} 50. Kg4 {[%clk 00:01:02]} {[%emt 00:00:10]} Rcxc3
{[%clk 00:21:27]} {[%emt 00:00:09]} 51. R7a6+ {[%clk 00:00:42]} {[%emt
00:00:51]} Kc5 {[%clk 00:21:49]} {[%emt 00:00:08]} 52. Rg1 {[%clk 00:00:54]}
{[%emt 00:00:18]} Ra3 {[%clk 00:22:00]} {[%emt 00:00:19]} 53. Rxa3 {[%clk
00:00:52]} {[%emt 00:00:32]} Rxa3 {[%clk 00:22:28]} {[%emt 00:00:02]} 0-1